bitfinex/quotes_SOLUSD_20250830
["timestamp","ask_amount","ask_price","bid_price","bid_amount"]
[1756518978343,26.0,202.03,201.93,11.32682151]
[1756518978651,26.0,202.11,201.97,11.32682151]
[1756518978956,20.0,202.14,201.97,11.32682151]
[1756518978957,11.32682151,202.03,201.97,11.32682151]
[1756518979117,26.0,202.07,201.99,11.32682151]
[1756518979322,26.0,202.1,202.0,0.69]
[1756518979519,11.32682151,202.07,202.02,11.32682151]
[1756518979750,11.32682151,202.08,202.03,0.69]
[1756518980047,11.32682151,202.08,202.02,11.32682151]
[1756518980257,26.0,202.1,201.99,0.69]
[1756518980552,26.0,202.06,201.99,0.69]
[1756518980722,26.0,202.06,201.81,99.24530375]
[1756518980723,30.94916083,202.06,201.94,0.69]
[1756518981118,26.0,202.07,201.94,5.64190478]
[1756518981358,13.59559401,202.1,201.94,5.64190478]
[1756518981359,13.595594,202.17,201.95,0.69]
[1756518981561,56.06,202.17,202.07,11.32682151]
[1756518981724,56.06,202.17,202.06,11.32682151]
[1756518982049,11.32682151,202.12,202.06,12.01682151]
[1756518982351,56.06,202.17,202.06,0.69]
[1756518982550,11.32682151,202.14,202.09,11.32682151]
[1756518982851,56.16,202.2,202.1,5.63785216]
[1756518983033,11.32682151,202.16,202.1,16.96467367]
[1756518983225,11.32682151,202.13,202.08,11.32682151]
[1756518983427,13.59559401,202.24,202.07,11.32682151]
[1756518983627,11.32682151,202.11,202.05,12.01682151]
[1756518983924,11.32682151,202.11,202.04,4.94935753]
[1756518983925,82.24,202.14,202.04,11.32682151]
[1756518984132,11.32682151,202.07,202.02,12.01682151]
[1756518984331,26.0,202.11,202.02,0.69]
[1756518984649,11.32682151,202.07,202.02,0.69]
[1756518984850,30.94793581,202.11,201.99,11.32682151]
[1756518985040,11.32682151,202.05,201.99,11.32682151]
[1756518986252,11.32682151,202.05,201.98,0.69]
[1756518986451,11.32682151,202.05,201.99,11.32682151]
[1756518986627,56.18,202.09,201.99,11.32682151]
[1756518986832,56.18,202.09,202.0,4.95049504]
[1756518987046,11.32682151,202.05,202.0,4.95049504]
[1756518987348,11.32682151,202.04,201.98,5.64074446]
[1756518987533,11.32682151,202.04,201.98,16.96756597]
[1756518987931,11.32682151,202.04,201.98,5.64074446]
[1756518988160,11.32682151,202.04,201.98,16.96756597]
[1756518988340,26.0,202.06,201.98,16.96756597]
[1756518988547,11.32682151,202.04,201.98,16.96756597]
[1756518988744,26.0,202.06,202.02,0.03]
[1756518988938,11.32682151,202.03,202.02,0.03]
[1756518989141,26.0,202.11,202.02,11.35682151]
[1756518989327,11.32682151,202.08,202.03,0.69]
[1756518989529,0.06,202.12,202.04,11.32682151]
[1756518989530,11.32682151,202.1,202.04,11.32682151]
[1756518989930,26.06,202.12,202.03,0.69]
[1756518990155,11.32682151,202.09,202.04,11.32682151]
[1756518990562,0.06,202.12,202.05,0.69]
[1756518990785,11.32682151,202.09,202.05,0.69]
[1756518991053,11.32682151,202.07,202.02,5.66978964]
[1756518991255,0.06,202.12,202.02,0.72]
[1756518991256,11.32682151,202.06,202.02,0.72]
[1756518991561,26.0,202.08,202.02,0.03]
[1756518991756,67.46682151,202.07,202.02,4.98000242]
[1756518992054,11.32682151,202.06,202.02,0.03]
[1756518992453,26.0,202.09,202.02,4.9799624]
[1756518992654,11.32682151,202.06,202.02,4.9799624]
[1756518992872,0.06,202.12,202.04,11.32682151]
[1756518993051,11.32682151,202.1,202.05,11.32682151]
[1756518993377,11.32682151,202.06,202.02,0.03]
[1756518993666,26.0,202.03,202.02,0.03]
[1756518993848,37.32682151,202.03,202.02,0.03]
[1756518994158,26.0,202.06,202.02,0.03]
[1756518994653,11.32682151,202.03,202.02,0.03]
[1756518995057,26.0,202.06,202.02,0.03]
[1756518995257,0.06,202.12,202.02,0.03]
[1756518995462,11.32682151,202.06,202.02,0.72]
[1756518995773,56.24,202.08,202.02,0.03]
[1756518996068,11.32682151,202.04,202.02,0.03]
[1756518996236,56.24,202.08,202.02,0.03]
[1756518996434,11.32682151,202.05,202.02,0.03]
[1756518996740,56.24,202.08,202.02,0.03]
[1756518997558,11.32682151,202.03,202.02,0.03]
[1756518997861,87.18854673,202.08,202.02,0.03]
[1756518998169,11.32682151,202.03,202.02,0.03]
[1756518998336,87.18854673,202.08,202.02,0.03]
[1756518998850,26.0,202.07,202.02,0.03]
[1756518999046,11.32682151,202.03,202.02,0.03]
[1756518999443,26.0,202.05,202.02,0.03]
[1756518999963,55.88,202.04,202.02,0.03]
[1756519000149,55.9,202.04,202.02,0.03]
[1756519000347,55.86,202.05,202.02,0.03]
[1756519000644,7.63606259,202.05,202.02,0.03]
[1756519001050,55.82,202.06,202.02,0.03]
[1756519001245,7.63606259,202.05,202.02,0.03]
[1756519001647,7.63606259,202.04,202.02,0.03]
[1756519002062,55.8,202.06,202.02,0.03]
[1756519002255,7.63606259,202.08,202.03,0.69]
[1756519002448,55.7,202.09,202.04,0.69]
[1756519002653,0.06,202.12,202.02,0.03]
[1756519002654,0.06,202.12,202.08,7.63606259]
[1756519002979,0.06,202.12,202.09,0.69]
[1756519003193,0.06,202.12,202.09,8.32606259]
[1756519003346,0.06,202.12,202.1,0.69]
[1756519003659,7.636063,202.26,202.11,7.63606259]
[1756519003875,0.06,202.32,202.22,7.63606259]
[1756519004172,0.06,202.32,202.12,0.69]
[1756519004173,3.5719312,202.31,202.27,7.63606259]
[1756519004350,0.1,202.33,202.27,0.69]
[1756519004551,3.5713354,202.32,202.27,8.32606259]
[1756519004760,0.1,202.33,202.26,7.63606259]
[1756519004955,3.57159254,202.32,202.27,0.69]
[1756519005271,0.1,202.33,202.3,7.63606259]
[1756519005568,11.43634814,202.33,202.28,0.69]
[1756519005768,0.1,202.33,202.28,0.69]
[1756519005958,11.43634814,202.33,202.29,0.69]
[1756519006275,11.43634814,202.33,202.28,11.33634814]
[1756519006276,0.1,202.33,202.21,4.94535384]
[1756519006454,11.33634814,202.27,202.22,12.02634814]
[1756519006768,11.33634814,202.27,202.24,4.94462025]
[1756519006979,11.33634814,202.28,202.25,0.69]
[1756519007189,82.12,202.32,202.25,0.69]
[1756519007482,11.33634814,202.29,202.22,4.94494679]
[1756519007657,26.0,202.2,202.03,17.32415977]
[1756519007858,26.0,202.2,202.12,0.69]
[1756519007859,82.14,202.2,202.12,0.69]
[1756519008089,11.33634814,202.16,202.12,0.69]
[1756519008258,56.46,202.2,202.12,0.69]
[1756519008575,11.33634814,202.19,202.13,0.69]
[1756519008789,11.33634814,202.2,202.14,11.33634814]
[1756519008964,26.0,202.2,202.14,11.33634814]
[1756519009278,11.33634814,202.19,202.13,12.02634814]
[1756519009482,11.33634814,202.18,202.13,0.69]
[1756519009687,11.33634814,202.18,202.13,5.63726203]
[1756519009897,11.33634814,202.17,202.14,0.69]
[1756519010266,11.33634814,202.18,202.15,0.69]
[1756519010485,11.33634814,202.19,202.15,0.69]
[1756519010659,11.33634814,202.19,202.12,4.9474837]
[1756519010660,0.06,202.28,202.17,4.94633229]
[1756519010982,11.33634814,202.26,202.2,11.33634814]
[1756519011278,11.33634814,202.27,202.21,12.02634814]
[1756519011477,0.06,202.28,202.21,0.69]
[1756519011656,11.39634814,202.28,202.21,0.69]
[1756519011859,0.06,202.28,202.22,11.33634814]
[1756519012075,11.39634814,202.28,202.22,11.33634814]
[1756519012260,0.06,202.28,202.22,11.33634814]
[1756519012467,11.39634814,202.28,202.22,11.33634814]
[1756519012670,11.33634814,202.27,202.22,4.94510928]
[1756519012871,0.06,202.28,202.23,0.69]
[1756519013077,0.06,202.28,202.12,26.0]
[1756519013078,26.0,202.27,202.18,11.33634814]
[1756519013268,25.5,202.27,202.2,12.02634814]
[1756519013482,11.39634814,202.28,202.22,11.33634814]
[1756519013904,0.06,202.28,202.23,11.33634814]
[1756519014183,0.06,202.28,202.23,12.02634814]
[1756519014385,0.06,202.28,202.24,0.69]
[1756519014970,0.06,202.28,202.25,0.69]
[1756519015169,0.06,202.28,202.25,12.02634814]
[1756519015372,0.06,202.28,202.26,12.02634814]
[1756519015587,0.06,202.28,202.26,0.69]
[1756519015796,0.06,202.28,202.27,0.69]
[1756519016672,11.39634814,202.28,202.12,50.73777953]
[1756519016871,11.33634814,202.26,202.2,12.02634814]
[1756519017087,11.33634814,202.27,202.21,16.97170198]
[1756519017290,0.06,202.28,202.21,16.97170198]
[1756519017479,11.33634814,202.26,202.21,0.69]
[1756519017687,0.06,202.28,202.02,0.03]
[1756519017688,11.33634814,202.22,202.02,0.03]
[1756519017988,26.0,202.17,202.06,11.33634814]
[1756519018206,11.33634814,202.12,202.07,0.69]
[1756519018391,26.0,202.18,202.08,11.33634814]
[1756519018392,11.33634814,202.13,202.08,11.33634814]
[1756519018693,56.66,202.13,202.03,0.69]
[1756519018883,11.33634814,202.07,202.03,0.69]
[1756519019083,26.0,202.11,202.03,0.69]
[1756519019276,11.33634814,202.1,202.04,12.02634814]
[1756519019791,26.0,202.13,202.04,12.02634814]
[1756519020096,10.83634814,202.1,202.04,12.02634814]
[1756519020292,11.33634814,202.09,202.03,4.94969361]
[1756519020476,11.33634814,202.08,202.03,0.69]
[1756519020669,26.0,202.12,202.03,0.69]
[1756519020870,11.33634814,202.08,202.03,0.69]
[1756519021082,11.33634814,202.07,202.02,0.03]
[1756519021285,0.06,202.11,202.02,0.03]
[1756519021479,11.33634814,202.07,202.02,0.03]
[1756519021895,4.94756253,202.12,202.03,0.68]
[1756519022102,56.66,202.12,202.03,0.68]
[1756519022309,56.66,202.12,202.02,0.03]
[1756519022492,11.33634814,202.07,202.02,0.03]
[1756519022684,11.33634814,202.06,202.02,0.03]
[1756519022886,56.66,202.12,202.03,0.68]
[1756519023079,11.33634814,202.06,202.03,0.68]
[1756519023284,11.33634814,202.07,202.03,0.68]
[1756519023490,11.33634814,202.06,202.02,0.03]
[1756519023998,61.58760595,202.12,202.02,0.71]
[1756519024203,11.33634814,202.05,202.02,0.03]
[1756519024719,11.33634814,202.07,202.03,0.68]
[1756519024897,11.33634814,202.1,202.05,11.33634814]
[1756519025202,11.33634814,202.1,202.06,0.68]
[1756519025379,11.33634814,202.09,202.06,0.68]
[1756519025581,11.33634814,202.08,202.03,11.33634814]
[1756519025782,87.52682487,202.15,202.04,0.68]
[1756519026016,11.33634814,202.1,202.04,0.68]
[1756519026311,87.52686292,202.15,202.04,0.68]
[1756519026604,11.33634814,202.1,202.04,12.01634814]
[1756519026908,11.33634814,202.09,202.04,0.68]
[1756519027088,87.52686292,202.15,202.04,0.68]
[1756519027293,11.33634814,202.09,202.05,0.68]
[1756519027807,11.33634814,202.09,202.06,0.68]
[1756519029021,0.06,202.12,202.06,0.68]
[1756519029188,0.06,202.12,202.06,0.18]
[1756519029384,7.6291682,202.1,202.06,0.18]
[1756519029690,7.6291682,202.07,202.03,0.03]
[1756519029891,0.56,202.07,202.03,0.03]
[1756519030207,26.0,202.11,202.03,0.03]
[1756519030208,7.6291682,202.04,202.03,0.03]
[1756519030507,7.6291682,202.05,202.03,0.03]
[1756519031600,0.06,202.12,202.04,0.68]
[1756519031998,0.06,202.12,202.09,7.6291682]
[1756519032200,0.06,202.12,202.1,0.68]
[1756519032784,0.06,202.12,202.07,5.62855119]
[1756519032999,0.06,202.12,202.09,0.68]
[1756519033410,0.06,202.12,202.04,0.68]
[1756519033623,26.56,202.11,202.03,0.03]
[1756519033833,26.56,202.11,201.95,0.68]
[1756519033834,33.6291682,202.03,201.95,0.68]
[1756519033986,26.0,202.03,201.95,0.68]
[1756519034316,7.6291682,202.03,201.95,8.3091682]
[1756519034504,26.0,202.05,201.98,0.68]
[1756519034711,26.0,202.06,201.99,7.6291682]
[1756519034888,7.6291682,202.1,202.03,0.68]
[1756519035088,7.6291682,202.05,201.99,7.6291682]
[1756519035317,11.36676031,202.08,202.03,0.68]
[1756519035614,0.06,202.12,202.04,12.04676031]
[1756519035916,11.36676031,202.11,202.05,11.36676031]
[1756519036122,11.36676031,202.08,202.04,0.68]
[1756519036488,11.36676031,202.07,202.04,0.68]
[1756519036704,4.94782828,202.11,202.02,0.03]
[1756519036885,11.36676031,202.07,202.03,0.68]
[1756519037297,26.59,202.12,202.02,4.97996052]
[1756519037298,0.06,202.12,202.04,12.04676031]
[1756519037621,11.36676031,202.1,202.04,12.04676031]
[1756519037913,0.06,202.12,202.04,12.04676031]
[1756519038216,0.06,202.12,202.04,0.68]
[1756519038388,11.36676031,202.1,202.04,12.04676031]
[1756519038592,11.36676031,202.1,202.05,0.68]
[1756519038893,11.36676031,202.1,202.02,0.03]
[1756519038894,11.36676031,202.1,202.06,0.68]
[1756519039396,11.36676031,202.1,202.04,11.36676031]
[1756519039608,11.36676031,202.1,202.06,0.68]
[1756519039990,11.36676031,202.1,202.05,4.94922466]
[1756519040186,26.0,202.07,202.02,0.03]
[1756519040428,11.36676031,202.03,202.02,0.03]
[1756519041137,0.53,202.06,202.02,0.03]
[1756519041296,11.36676031,202.04,202.02,0.03]
[1756519041713,0.53,202.06,202.02,0.03]
[1756519041907,11.36676031,202.03,202.02,0.03]
[1756519042322,0.53,202.06,202.02,0.03]
[1756519042504,11.36676031,202.03,202.02,0.03]
[1756519042708,11.36676031,202.06,202.02,0.71]
[1756519043097,56.02,202.09,202.02,0.71]
[1756519043422,11.36676031,202.03,202.02,0.03]
[1756519045456,55.88,202.09,202.02,0.03]
[1756519045616,0.53,202.1,202.02,0.03]
[1756519045930,11.36676031,202.05,202.02,0.03]
[1756519046132,0.53,202.1,202.03,0.68]
[1756519046311,0.53,202.14,202.03,0.68]
[1756519046519,0.06,202.07,202.04,4.94951494]
[1756519046814,11.42676031,202.07,202.04,0.68]
[1756519047014,11.42676031,202.07,202.02,4.97997395]
[1756519047015,11.42676031,202.07,202.05,0.68]
[1756519047315,11.36676031,202.06,202.02,0.71]
[1756519047513,11.36676031,202.03,202.02,0.03]
[1756519047713,11.36676031,202.03,202.02,0.71]
[1756519048013,11.36676031,202.04,202.02,0.71]
[1756519048323,11.36676031,202.03,202.02,0.03]
[1756519049500,4.94902504,202.06,202.02,0.03]
[1756519049705,11.36676031,202.03,202.02,0.03]
[1756519049920,5.47902504,202.06,202.02,0.03]
[1756519050104,11.36676031,202.03,202.02,0.03]
[1756519050725,0.53,202.06,202.02,0.03]
[1756519050726,26.53,202.06,202.02,0.03]
[1756519050919,11.36676031,202.03,202.02,0.03]
[1756519051325,37.89676031,202.03,202.02,0.03]
[1756519052637,98.18652024,202.03,202.02,0.03]
[1756519052841,86.81975993,202.03,202.02,0.03]
[1756519053149,98.18652024,202.03,202.02,0.03]
[1756519054926,42.84652024,202.03,202.02,0.03]
[1756519055122,86.61975993,202.03,202.02,0.03]
[1756519055322,97.98652024,202.03,202.02,0.03]
[1756519055848,30.94975993,202.03,202.02,0.03]
[1756519056041,37.36676031,202.03,202.02,0.03]
[1756519056351,97.31652024,202.03,202.02,0.03]
[1756519056726,97.84652024,202.03,202.02,0.03]
[1756519057129,97.27652024,202.03,202.02,0.03]
[1756519057331,93.54762939,202.03,202.02,0.03]
[1756519057627,7.63786946,202.03,202.02,0.03]
[1756519057818,5.00879974,202.07,202.02,0.72]
[1756519058021,7.63786946,202.03,202.02,0.03]
[1756519059232,12.58762939,202.03,202.02,0.03]
[1756519059554,4.94975993,202.03,202.02,0.03]
[1756519059949,12.58762939,202.03,202.02,0.03]
[1756519060130,38.58762939,202.03,202.02,0.03]
[1756519061623,30.94975993,202.03,202.02,0.03]
[1756519061827,26.0,202.03,202.02,0.03]
[1756519062045,88.39786946,202.03,202.02,0.03]
[1756519062740,88.19786946,202.03,202.02,0.03]
[1756519063070,219.79786946,202.03,202.02,0.03]
[1756519063870,131.6,202.03,202.02,0.03]
[1756519064040,139.23786946,202.03,202.02,0.72]
[1756519065136,131.6,202.03,202.02,0.72]
[1756519065334,139.23786946,202.03,202.02,0.03]
[1756519066147,139.29786946,202.03,202.02,0.03]
[1756519067151,0.06,202.03,202.02,0.72]
[1756519067351,0.06,202.06,202.02,0.72]
[1756519067582,7.63786946,202.05,202.02,0.72]
[1756519068076,7.63786946,202.05,202.02,5.66998415]
[1756519068251,0.06,202.06,202.03,0.69]
[1756519068452,0.06,202.06,202.03,8.32786946]
[1756519068652,0.06,202.06,202.04,0.69]
[1756519069080,0.06,202.06,202.04,8.32786946]
[1756519069290,0.06,202.06,202.04,0.69]
[1756519069453,0.06,202.06,202.05,5.63926998]
[1756519070784,0.06,202.06,202.05,0.69]
[1756519071491,0.06,202.06,202.05,5.63926998]
[1756519071992,0.06,202.06,202.05,0.69]
[1756519072958,7.69786946,202.06,202.02,0.72]
[1756519073270,7.63786946,202.05,202.03,0.69]
[1756519073775,7.69786946,202.06,202.04,0.69]
[1756519074481,7.69786946,202.06,202.02,0.03]
[1756519074482,0.06,202.12,202.05,0.69]
[1756519074864,0.06,202.12,202.07,7.63786946]
[1756519075175,0.06,202.12,202.08,8.32786946]
[1756519075369,0.06,202.12,202.08,0.69]
[1756519075574,7.69786946,202.12,202.09,0.69]
[1756519075771,7.69786946,202.12,202.07,0.69]
[1756519075978,7.63786946,202.11,202.08,0.69]
[1756519076175,7.63786946,202.09,202.05,0.69]
[1756519076379,7.63786946,202.08,202.05,0.69]
[1756519076584,7.63786946,202.09,202.06,0.69]
[1756519076765,7.63786946,202.1,202.02,4.97991848]
[1756519076960,0.06,202.12,202.05,7.63786946]
[1756519076961,7.63786946,202.11,202.05,7.63786946]
[1756519077164,0.06,202.12,202.07,7.63786946]
[1756519077559,0.06,202.12,202.08,0.69]
[1756519077776,0.06,202.12,202.07,12.58653611]
[1756519077777,0.06,202.12,202.09,0.69]
[1756519078390,0.06,202.12,202.1,0.69]
[1756519078575,7.69786946,202.12,202.08,0.69]
[1756519078885,7.69786946,202.12,202.09,0.69]
[1756519079189,7.69786946,202.12,202.1,0.69]
[1756519079369,0.06,202.12,202.1,0.69]
[1756519080082,0.06,202.12,202.11,0.69]
[1756519080464,0.06,202.12,202.11,8.32786946]
[1756519080788,12.36146402,202.25,202.11,8.32786946]
[1756519080789,0.69,202.25,202.11,8.32786946]
[1756519080985,0.69,202.25,202.16,7.63786946]
[1756519081286,7.63786946,202.21,202.17,0.67]
[1756519081492,7.63786946,202.19,202.14,0.67]
[1756519081694,17.53099396,202.25,202.11,0.67]
[1756519081695,7.63786946,202.15,202.11,0.67]
[1756519081989,53.72,202.22,202.11,0.67]
[1756519082208,4.51668676,202.27,202.12,13.59559401]
[1756519082209,0.1,202.27,202.12,13.59559401]
[1756519082392,0.1,202.27,202.21,7.63786946]
[1756519082693,0.1,202.27,202.14,13.59559401]
[1756519082879,7.63786946,202.26,202.2,7.63786946]
[1756519083085,7.63786946,202.25,202.2,0.67]
[1756519083300,0.1,202.27,202.21,0.67]
[1756519083480,0.1,202.27,202.22,7.63786946]
[1756519083681,0.1,202.27,202.23,0.67]
[1756519083893,7.73786946,202.27,202.23,0.67]
[1756519084096,7.63786946,202.26,202.23,0.67]
[1756519084291,0.1,202.27,202.23,0.67]
[1756519084474,0.06,202.24,202.19,0.67]
[1756519084674,0.06,202.24,202.2,0.67]
[1756519084894,7.63786946,202.23,202.21,0.67]
[1756519085091,0.06,202.24,202.21,0.67]
[1756519085289,7.63786946,202.23,202.21,0.67]
[1756519085675,7.63786946,202.22,202.1,4.94804552]
[1756519085896,7.63786946,202.21,202.11,0.67]
[1756519086080,0.06,202.24,202.11,0.67]
[1756519086081,7.63786946,202.2,202.11,0.67]
[1756519086276,0.06,202.24,202.11,0.67]
[1756519086277,0.06,202.24,202.17,7.63786946]
[1756519086578,7.63786946,202.22,202.17,0.67]
[1756519086891,0.06,202.24,202.18,0.67]
[1756519087095,7.63786946,202.21,202.18,0.67]
[1756519087408,7.63786946,202.2,202.16,0.67]
[1756519087694,0.06,202.24,202.17,0.67]
[1756519087902,7.63786946,202.2,202.17,0.67]
[1756519088075,7.63786946,202.19,202.14,4.94689676]
[1756519088282,7.63786946,202.16,202.11,8.30786946]
[1756519088502,0.69,202.22,202.12,0.67]
[1756519088705,7.63786946,202.15,202.12,0.67]
[1756519089005,26.0,202.21,202.1,4.94804552]
[1756519089200,7.63786946,202.14,202.12,0.67]
[1756519089377,7.63786946,202.15,202.12,0.67]
[1756519089587,26.0,202.21,202.13,0.67]
[1756519089801,7.63786946,202.19,202.13,8.30786946]
[1756519089981,7.63786946,202.19,202.14,0.67]
[1756519090304,7.63786946,202.18,202.15,0.67]
[1756519090683,7.63786946,202.18,202.16,0.67]
[1756519091780,0.69,202.23,202.16,0.67]
[1756519092088,7.63786946,202.17,202.13,0.67]
[1756519092405,26.06,202.24,202.15,7.63786946]
[1756519092586,7.63786946,202.22,202.16,8.30786946]
[1756519092783,7.63786946,202.17,202.06,0.67]
[1756519093089,0.69,202.16,202.07,4.94878012]
[1756519093284,0.69,202.16,202.08,0.67]
[1756519093484,7.63786946,202.12,202.08,0.67]
[1756519093686,7.63786946,202.12,202.09,0.67]
[1756519093906,7.63787,202.18,202.1,0.67]
[1756519094091,5.63601863,202.19,202.1,0.67]
[1756519094286,7.63786946,202.14,202.1,0.67]
[1756519094489,7.63786946,202.15,202.11,0.67]
[1756519094687,7.63786946,202.15,202.12,0.67]
[1756519095108,0.69,202.19,202.12,0.67]
[1756519095289,7.63786946,202.15,202.12,0.67]
[1756519095484,7.63786946,202.13,202.08,0.67]
[1756519095692,7.63786946,202.09,202.05,0.67]
[1756519095908,4.94585745,202.19,202.06,0.67]
[1756519095909,7.63786946,202.1,202.06,0.67]
[1756519096084,7.63786946,202.1,202.07,0.67]
[1756519096489,7.63786946,202.1,202.08,0.67]
[1756519096698,12.37397,202.17,202.09,0.67]
[1756519096909,0.69,202.2,202.13,7.63786946]
[1756519097091,0.69,202.23,202.14,4.94706638]
[1756519097295,7.63786946,202.21,202.15,8.30786946]
[1756519097612,7.63786946,202.23,202.17,7.63786946]
[1756519097806,20.07183946,202.24,202.18,8.30786946]
[1756519098019,7.69786946,202.24,202.18,8.30786946]
[1756519098190,0.06,202.24,202.18,8.30786946]
[1756519098391,7.69786946,202.24,202.18,8.30786946]
[1756519099116,0.06,202.24,202.18,7.63786946]
[1756519099297,0.1,202.27,202.23,26.0]
[1756519099498,0.1,202.27,202.24,13.59559401]
[1756519099804,0.1,202.27,202.24,8.30786946]
[1756519100120,0.1,202.27,202.25,0.67]
[1756519100483,0.1,202.27,202.2,26.0]
[1756519100484,0.1,202.27,202.21,13.59559401]
[1756519100689,0.1,202.27,202.21,14.26559401]
[1756519100984,7.73786946,202.27,202.22,0.67]
[1756519101182,7.73786946,202.27,202.23,0.67]
[1756519101388,7.73786946,202.27,202.24,5.61462025]
[1756519101798,7.73786946,202.27,202.2,26.0]
[1756519101799,7.63786946,202.25,202.2,0.67]
[1756519102087,0.1,202.27,202.2,0.67]
[1756519102292,7.63786946,202.23,202.2,0.67]
[1756519102591,7.63786946,202.23,202.18,4.9459185]
[1756519102786,7.63786946,202.23,202.15,67.73559401]
[1756519102787,0.1,202.27,202.19,0.67]
[1756519102988,7.63786946,202.22,202.19,0.67]
[1756519103525,7.63786946,202.22,202.19,5.61574501]
[1756519103913,0.1,202.27,202.19,5.61574501]
[1756519103914,7.63786946,202.23,202.19,5.61574501]
[1756519104223,7.63786946,202.23,202.2,0.67]
[1756519104524,0.1,202.27,202.22,7.63786946]
[1756519104694,0.1,202.27,202.23,0.67]
[1756519105022,7.63786946,202.26,202.23,0.67]
[1756519105221,7.63786946,202.26,202.19,17.31035255]
[1756519105222,7.63786946,202.24,202.19,5.61574501]
[1756519105418,7.63786946,202.24,202.2,0.67]
[1756519105629,7.63786946,202.24,202.21,0.67]
[1756519105824,7.73786946,202.27,202.22,0.67]
[1756519105991,0.1,202.27,202.22,0.67]
[1756519106517,7.63786946,202.26,202.23,0.67]
[1756519106719,0.1,202.27,202.19,4.94574501]
[1756519106720,7.63786946,202.24,202.19,4.94574501]
[1756519106902,7.63786946,202.23,202.19,5.61574501]
[1756519107101,0.79,202.27,202.19,5.61574501]
[1756519107607,7.63786946,202.25,202.19,13.25361447]
[1756519108209,0.79,202.27,202.19,13.25361447]
[1756519108417,7.63786946,202.25,202.19,13.25361447]
[1756519109344,0.79,202.27,202.19,13.25361447]
[1756519109345,0.1,202.27,202.24,7.63786946]
[1756519109543,0.1,202.27,202.26,7.63786946]
[1756519109904,0.1,202.27,202.25,4.94437577]
[1756519110432,0.1,202.27,202.25,5.61437577]
[1756519110607,0.1,202.27,202.25,13.25224523]
[1756519111130,0.1,202.27,202.26,8.34786946]
[1756519111507,0.1,202.27,202.26,5.65413131]
[1756519111934,0.1,202.27,202.26,4.94413131]
[1756519112157,7.73786946,202.27,202.22,13.2928201]
[1756519112353,0.1,202.27,202.25,7.63786946]
[1756519112559,0.1,202.27,202.26,8.34786946]
[1756519112719,0.1,202.27,202.26,0.71]
[1756519112924,0.1,202.27,202.23,7.63786946]
[1756519113430,0.1,202.27,202.24,4.94462025]
[1756519114034,0.1,202.27,202.23,5.6548457]
[1756519114232,0.1,202.27,202.23,4.9448457]
[1756519114446,7.73786946,202.27,202.23,4.9448457]
[1756519114630,7.63786946,202.25,202.2,7.63786946]
[1756519114840,7.63786946,202.24,202.19,7.63786946]
[1756519115020,8.33786946,202.24,202.18,7.63786946]
[1756519115227,7.63786946,202.22,202.17,61.25786946]
[1756519115452,7.63786946,202.22,202.17,61.96786946]
[1756519115651,7.63786946,202.22,202.15,4.9465822]
[1756519115652,0.7,202.22,202.15,4.9465822]
[1756519115872,7.63786946,202.2,202.15,4.9465822]
[1756519116055,7.63786946,202.19,202.15,4.9465822]
[1756519116360,0.7,202.22,202.15,5.6565822]
[1756519116529,7.63786946,202.19,202.15,5.6565822]
[1756519116932,0.7,202.22,202.15,0.71]
[1756519117126,7.63786946,202.2,202.15,13.294669]